[Event "FIDE Womens Grand Swiss 2023"]
[Site "Douglas/Isle of Man"]
[Date "2023.10.25"]
[Round "1.15"]
[White "Munguntuul, Batkhuyag"]
[Black "Mammadzada, Gunay"]
[Result "1/2-1/2"]
[ECO "B84"]
[WhiteElo "2366"]
[BlackElo "2441"]
[Annotator "RC"]
[PlyCount "154"]
[EventDate "2023.10.04"]
[EventType "swiss"]
[EventCountry "GBR"]
[SourceTitle "playchess.com"]
[Source "ChessBase"]
[SourceQuality "1"]
[TimeControl "40/6000+30:20/3000+30:900+30"]

1. e4 {[%emt 0:10:03]} c5 {[%emt 0:10:09]} 2. Nf3 {[%emt 0:00:08]} d6 {[%emt 0:00:04]} 3. d4 {[%emt 0:00:07]} cxd4 {[%emt 0:00:05]} 4. Nxd4 {[%emt 0:00:02]} Nf6 {[%emt 0:00:07]} 5. Nc3 {[%emt 0:00:10]} a6 {[%emt 0:00:01]} 6. Be3 {[%emt 0:00:23]} e6 {[%emt 0:00:29]} 7. a4 {[%emt 0:14:18]} Be7 {[%emt 0:11:11]} 8. a5 {[%emt 0:05:23]} O-O {[%emt 0:09:44]} 9. Be2 {[%emt 0:03:16]} Nbd7 {[%emt 0:06:00]} 10. O-O {[%emt 0:07:05]} Qc7 {[%emt 0:00:42]} 11. f4 {[%emt 0:17:43]} b5 {[%emt 0:03:39]} 12. axb6 {[%emt 0:01:56]} Nxb6 {[%emt 0:00:12]} 13. Kh1 {[%emt 0:00:17]} Bb7 {[%emt 0:08:37]} 14. Bd3 {[%emt 0:01:57]} d5 {[%emt 0:06:21]} 15. e5 {[%emt 0:10:02]} Ne4 {[%emt 0:05:05]} 16. Qe2 {[%emt 0:00:58]} g6 {[%emt 0:15:43]} 17. Nxe4 {[%emt 0:10:02]} dxe4 {[%emt 0:00:06]} 18. Bxa6 {[%emt 0:00:12]} Bxa6 {[%emt 0:01:12]} 19. Rxa6 {[%emt 0:00:04]} Rxa6 {[%emt 0:02:23]} 20. Qxa6 {[%emt 0:00:04]} Ra8 {[%emt 0:06:04]} 21. Qe2 {[%emt 0:02:04]} Ra2 {[%emt 0:06:30]} 22. Bc1 {[%emt 0:06:30]} Qc4 {[%emt 0:00:35]} 23. Qxc4 {[%emt 0:00:54]} Nxc4 {[%emt 0:00:02]} 24. b3 {[%emt 0:00:27]} Bc5 {[%emt 0:01:42]} 25. Nb5 {[%emt 0:06:41]} Nb6 {[%emt 0:08:48]} 26. Nc3 {[%emt 0:03:17]} Ra1 {[%emt 0:00:05]} 27. g3 {[%emt 0:01:26]} Nd5 {[%emt 0:05:02]} 28. Nxe4 {[%emt 0:07:52]} Ba3 {[%emt 0:02:02]} 29. c4 {[%emt 0:00:02]} Ne3 {[%emt 0:00:26]} 30. Nf6+ {[%emt 0:00:05]} Kg7 {[%emt 0:00:25]} 31. Rg1 {[%emt 0:00:37]} Rxc1 {[%emt 0:01:56]} 32. Rxc1 {[%emt 0:00:08]} Bxc1 {[%emt 0:00:01]} 33. c5 {[%emt 0:00:14]} Nf5 {[%emt 0:00:47]} 34. c6 {[%emt 0:02:05]} Ne7 {[%emt 0:00:10]} 35. c7 {[%emt 0:00:04]} Be3 {[%emt 0:01:01]} 36. Ne8+ {[%emt 0:00:22]} Kf8 {[%emt 0:00:31]} 37. Nd6 {[%emt 0:00:02]} g5 {[%emt 0:00:28]} 38. fxg5 {[%emt 0:00:40]} Bd4 {[%emt 0:00:26]} 39. c8=Q+ {[%emt 0:00:43]} Nxc8 {[%emt 0:00:01]} 40. Nxc8 {[%emt 0:00:09]} Bxe5 {[%emt 0:00:08]} 41. Nb6 {[%emt 0:22:19]} Bd6 {[%emt 0:23:28]} 42. Kg2 {[%emt 0:00:17]} Be7 {[%emt 0:01:20]} 43. h4 {[%emt 0:00:50]} Kg7 {[%emt 0:00:11]} 44. Nc4 {[%emt 0:04:25]} f6 {[%emt 0:02:48]} 45. gxf6+ {[%emt 0:00:20]} Kxf6 {[%emt 0:00:04]} 46. Kf3 {[%emt 0:06:17]} Bb4 {[%emt 0:08:09]} 47. Nb2 {[%emt 0:03:39]} Ke7 {[%emt 0:05:08]} 48. Nd3 {[%emt 0:00:08]} Bc3 {[%emt 0:03:01]} 49. Ke4 {[%emt 0:02:55]} Kd6 {[%emt 0:01:47]} 50. b4 {[%emt 0:00:09]} Kc6 {[%emt 0:05:21]} 51. g4 {[%emt 0:00:15]} h6 {[%emt 0:00:58]} 52. g5 {[%emt 0:01:20]} hxg5 {[%emt 0:00:04]} 53. hxg5 {[%emt 0:00:07]} Kb5 {[%emt 0:04:08]} 54. g6 {[%emt 0:02:49]} Bf6 {[%emt 0:00:24]} 55. Nf4 {[%emt 0:09:59]} Kxb4 {[%emt 0:00:13]} 56. Nxe6 {[%emt 0:00:01]} Kc4 {[%emt 0:00:05]} 57. Nc7 {[%emt 0:01:05]} Bh8 {[%emt 0:00:23]} 58. Kf5 {[%emt 0:00:34]} Kd4 {[%emt 0:01:00]} 59. Ke6 {[%emt 0:00:57]} Ke4 {[%emt 0:01:13]} 60. Nd5 {[%emt 0:00:02]} Kf3 {[%emt 0:00:38]} 61. Kf5 {[%emt 0:15:16]} Kg3 {[%emt 0:15:22]} 62. Kg5 {[%emt 0:00:09]} Kf3 {[%emt 0:00:41]} 63. Nf6 {[%emt 0:00:05]} Ke3 {[%emt 0:00:54]} 64. Kf5 {[%emt 0:00:10]} Kf3 {[%emt 0:00:34]} 65. Nd5 {[%emt 0:03:14]} Kg3 {[%emt 0:00:09]} 66. Kg5 {[%emt 0:00:23]} Kf3 {[%emt 0:00:11]} 67. Kh6 {[%emt 0:00:02]} Ke4 {[%emt 0:00:26]} 68. Kh7 {[%emt 0:00:01]} Be5 {[%emt 0:00:41]} 69. Ne7 {[%emt 0:00:08]} Kf4 {[%emt 0:00:28]} 70. Kg8 {[%emt 0:00:09]} Kg5 {[%emt 0:00:15]} 71. Kf7 {[%emt 0:00:03]} Bb2 {[%emt 0:00:40]} 72. Nd5 {[%emt 0:00:36]} Kf5 {[%emt 0:00:14]} 73. Nc7 {[%emt 0:00:22]} Ba1 {[%emt 0:00:27]} 74. Nd5 {[%emt 0:00:05]} Bb2 {[%emt 0:00:10]} 75. Nc7 {[%emt 0:00:11]} Ba1 {[%emt 0:00:04]} 76. Ne8 {[%emt 0:00:11]} Bb2 {[%emt 0:00:23]} 77. Nd6+ {[%emt 0:00:14]} Kg5 {[%emt 0:00:05]} 1/2-1/2

[Event "FIDE Womens Grand Swiss 2023"]
[Site "Douglas/Isle of Man"]
[Date "2023.10.25"]
[Round "1.16"]
[White "Gunina, Valentina"]
[Black "Aulia, Medina Warda"]
[Result "1-0"]
[ECO "D32"]
[WhiteElo "2439"]
[BlackElo "2362"]
[Annotator "RC"]
[PlyCount "139"]
[EventDate "2023.10.04"]
[EventType "swiss"]
[EventCountry "GBR"]
[SourceTitle "playchess.com"]
[Source "ChessBase"]
[SourceQuality "1"]
[TimeControl "40/6000+30:20/3000+30:900+30"]

1. d4 {[%emt 0:10:06]} d5 {[%emt 0:10:05]} 2. c4 {[%emt 0:00:09]} e6 {[%emt 0:00:07]} 3. Nf3 {[%emt 0:00:08]} Nf6 {[%emt 0:00:08]} 4. Nc3 {[%emt 0:00:12]} c5 {[%emt 0:00:14]} 5. cxd5 {[%emt 0:00:29]} exd5 {[%emt 0:00:07]} 6. Bg5 {[%emt 0:01:21]} Be6 {[%emt 0:00:30]} 7. e3 {[%emt 0:00:37]} c4 {[%emt 0:00:41]} 8. Be2 {[%emt 0:00:53]} Bb4 {[%emt 0:03:39]} 9. O-O {[%emt 0:02:11]} Bxc3 {[%emt 0:04:49]} 10. bxc3 {[%emt 0:00:09]} O-O {[%emt 0:00:14]} 11. Ne5 {[%emt 0:04:09]} Nbd7 {[%emt 0:00:20]} 12. Qb1 {[%emt 0:08:34]} Qa5 {[%emt 0:07:46]} 13. Nxd7 {[%emt 0:01:35]} Nxd7 {[%emt 0:01:13]} 14. Rc1 {[%emt 0:01:47]} Nb6 {[%emt 0:04:43]} 15. Bd1 {[%emt 0:04:00]} Rfe8 {[%emt 0:05:23]} 16. a4 {[%emt 0:02:24]} Bd7 {[%emt 0:07:29]} 17. Bf4 {[%emt 0:02:21]} h6 {[%emt 0:04:35]} 18. h3 {[%emt 0:02:43]} Qa6 {[%emt 0:06:47]} 19. Bf3 {[%emt 0:04:09]} Bc6 {[%emt 0:06:11]} 20. a5 {[%emt 0:03:49]} Nc8 {[%emt 0:01:08]} 21. h4 {[%emt 0:04:54]} Ne7 {[%emt 0:01:26]} 22. h5 {[%emt 0:00:24]} Rad8 {[%emt 0:00:33]} 23. Re1 {[%emt 0:01:07]} Kh8 {[%emt 0:09:25]} 24. Bc7 {[%emt 0:01:54]} Rd7 {[%emt 0:01:18]} 25. Be5 {[%emt 0:00:20]} f6 {[%emt 0:04:16]} 26. Bg3 {[%emt 0:01:28]} Rdd8 {[%emt 0:00:36]} 27. Bg4 {[%emt 0:02:28]} Qb5 {[%emt 0:02:05]} 28. Qxb5 {[%emt 0:04:49]} Bxb5 {[%emt 0:00:02]} 29. Bc7 {[%emt 0:00:10]} Ra8 {[%emt 0:00:03]} 30. Be6 {[%emt 0:00:56]} Bc6 {[%emt 0:02:21]} 31. f3 {[%emt 0:00:36]} f5 {[%emt 0:01:38]} 32. g4 {[%emt 0:05:01]} Rf8 {[%emt 0:02:15]} 33. Be5 {[%emt 0:01:46]} Rae8 {[%emt 0:00:42]} 34. Ra2 {[%emt 0:01:16]} Ng6 {[%emt 0:02:57]} 35. gxf5 {[%emt 0:06:43]} Nh4 {[%emt 0:00:07]} 36. Rf1 {[%emt 0:02:50]} Nxf5 {[%emt 0:00:05]} 37. Bxf5 {[%emt 0:00:07]} Rxf5 {[%emt 0:00:04]} 38. Rg2 {[%emt 0:00:24]} Re7 {[%emt 0:00:54]} 39. Kf2 {[%emt 0:03:35]} Rxh5 {[%emt 0:00:43]} 40. Rfg1 {[%emt 0:00:05]} Rg5 {[%emt 0:00:11]} 41. Rxg5 {[%emt 0:50:15]} hxg5 {[%emt 0:50:03]} 42. Rxg5 {[%emt 0:00:05]} Kh7 {[%emt 0:00:18]} 43. Rg4 {[%emt 0:01:56]} Bd7 {[%emt 0:05:23]} 44. Rh4+ {[%emt 0:00:54]} Kg8 {[%emt 0:01:19]} 45. e4 {[%emt 0:00:13]} Be6 {[%emt 0:01:44]} 46. Rh5 {[%emt 0:01:38]} Rd7 {[%emt 0:01:40]} 47. Rg5 {[%emt 0:00:22]} Kf8 {[%emt 0:01:09]} 48. Ke3 {[%emt 0:01:17]} Bg8 {[%emt 0:03:16]} 49. Rg6 {[%emt 0:02:08]} Bh7 {[%emt 0:00:29]} 50. Rg1 {[%emt 0:01:36]} Bg8 {[%emt 0:01:55]} 51. Rb1 {[%emt 0:00:10]} Be6 {[%emt 0:02:14]} 52. Bb8 {[%emt 0:00:57]} a6 {[%emt 0:00:10]} 53. Be5 {[%emt 0:00:10]} g6 {[%emt 0:00:50]} 54. Rb6 {[%emt 0:00:55]} Bf7 {[%emt 0:01:16]} 55. Kf4 {[%emt 0:01:09]} Be8 {[%emt 0:01:08]} 56. Bd6+ {[%emt 0:02:26]} Kg8 {[%emt 0:00:56]} 57. exd5 {[%emt 0:00:22]} Bf7 {[%emt 0:03:01]} 58. Ke5 {[%emt 0:01:05]} g5 {[%emt 0:01:10]} 59. Rb4 {[%emt 0:02:33]} Bh5 {[%emt 0:00:01]} 60. Rxc4 {[%emt 0:00:22]} Bxf3 {[%emt 0:00:10]} 61. Rc8+ {[%emt 0:15:09]} Kg7 {[%emt 0:15:12]} 62. Bf8+ {[%emt 0:03:52]} Kg6 {[%emt 0:01:53]} 63. c4 {[%emt 0:00:48]} Bg4 {[%emt 0:01:47]} 64. Rb8 {[%emt 0:02:33]} Bf3 {[%emt 0:01:18]} 65. d6 {[%emt 0:01:03]} Be2 {[%emt 0:00:00]} 66. c5 {[%emt 0:00:00]} g4 {[%emt 0:00:00]} 67. Be7 {[%emt 0:00:00]} Kg7 {[%emt 0:00:00]} 68. Ke6 {[%emt 0:00:00]} Bb5 {[%emt 0:00:00]} 69. Bf6+ {[%emt 0:00:00]} Kh6 {[%emt 0:00:00]} 70. d5 {[%emt 0:00:00]} 1-0

[Event "FIDE Womens Grand Swiss 2023"]
[Site "Douglas/Isle of Man"]
[Date "2023.10.25"]
[Round "1.17"]
[White "Guichard, Pauline"]
[Black "Javakhishvili, Lela"]
[Result "1-0"]
[ECO "E21"]
[WhiteElo "2358"]
[BlackElo "2437"]
[Annotator "RC"]
[PlyCount "105"]
[EventDate "2023.10.04"]
[EventType "swiss"]
[EventCountry "GBR"]
[SourceTitle "playchess.com"]
[Source "ChessBase"]
[SourceQuality "1"]
[TimeControl "40/6000+30:20/3000+30:900+30"]

1. d4 {[%emt 0:10:03]} Nf6 {[%emt 0:10:07]} 2. c4 {[%emt 0:00:15]} e6 {[%emt 0:00:07]} 3. Nc3 {[%emt 0:00:07]} Bb4 {[%emt 0:00:09]} 4. e3 {[%emt 0:00:13]} O-O {[%emt 0:00:14]} 5. Bd2 {[%emt 0:00:09]} b6 {[%emt 0:00:28]} 6. Nf3 {[%emt 0:01:28]} c5 {[%emt 0:00:32]} 7. Bd3 {[%emt 0:00:30]} Ba6 {[%emt 0:03:35]} 8. a3 {[%emt 0:04:30]} Bxc3 {[%emt 0:00:07]} 9. Bxc3 {[%emt 0:00:14]} d5 {[%emt 0:01:31]} 10. b3 {[%emt 0:03:01]} dxc4 {[%emt 0:03:09]} 11. bxc4 {[%emt 0:01:58]} Nbd7 {[%emt 0:00:14]} 12. O-O {[%emt 0:08:11]} Rc8 {[%emt 0:05:12]} 13. Qe2 {[%emt 0:05:28]} Qc7 {[%emt 0:00:13]} 14. Nd2 {[%emt 0:10:13]} Rfe8 {[%emt 0:05:31]} 15. a4 {[%emt 0:17:08]} cxd4 {[%emt 0:04:00]} 16. exd4 {[%emt 0:02:02]} e5 {[%emt 0:02:05]} 17. Qf3 {[%emt 0:10:42]} exd4 {[%emt 0:22:57]} 18. Bxd4 {[%emt 0:00:07]} Ne5 {[%emt 0:00:28]} 19. Bxe5 {[%emt 0:00:45]} Rxe5 {[%emt 0:05:10]} 20. Rfe1 {[%emt 0:11:13]} Bb7 {[%emt 0:02:14]} 21. Qh3 {[%emt 0:07:56]} Rd8 {[%emt 0:02:33]} 22. Rxe5 {[%emt 0:00:39]} Qxe5 {[%emt 0:00:08]} 23. Rd1 {[%emt 0:02:28]} g6 {[%emt 0:19:40]} 24. Nf1 {[%emt 0:00:47]} Bc6 {[%emt 0:05:39]} 25. Bc2 {[%emt 0:02:39]} Rxd1 {[%emt 0:00:07]} 26. Bxd1 {[%emt 0:00:03]} Kg7 {[%emt 0:02:00]} 27. Qa3 {[%emt 0:04:37]} Nd7 {[%emt 0:05:25]} 28. Ne3 {[%emt 0:02:04]} a5 {[%emt 0:02:00]} 29. Bf3 {[%emt 0:03:38]} Bxf3 {[%emt 0:00:07]} 30. gxf3 {[%emt 0:00:03]} h5 {[%emt 0:02:03]} 31. Nd5 {[%emt 0:01:41]} h4 {[%emt 0:02:17]} 32. h3 {[%emt 0:00:07]} Qe6 {[%emt 0:02:01]} 33. Kg2 {[%emt 0:00:57]} Qc6 {[%emt 0:00:51]} 34. Qc3+ {[%emt 0:00:31]} f6 {[%emt 0:01:00]} 35. Qe3 {[%emt 0:00:54]} Qd6 {[%emt 0:00:44]} 36. Qe8 {[%emt 0:00:32]} Nf8 {[%emt 0:02:30]} 37. Qc8 {[%emt 0:00:27]} Nd7 {[%emt 0:00:54]} 38. Qd8 {[%emt 0:00:25]} Qe6 {[%emt 0:00:44]} 39. Nc7 {[%emt 0:00:27]} Qf7 {[%emt 0:00:40]} 40. Ne8+ {[%emt 0:00:21]} Kh6 {[%emt 0:00:04]} 41. Nd6 {[%emt 0:23:36]} Qg7 {[%emt 0:22:23]} 42. Nc8 {[%emt 0:09:10]} Ne5 {[%emt 0:01:16]} 43. Nxb6 {[%emt 0:01:04]} g5 {[%emt 0:00:56]} 44. Nd5 {[%emt 0:02:02]} Nxc4 {[%emt 0:02:51]} 45. Ne7 {[%emt 0:10:33]} Qh7 {[%emt 0:05:03]} 46. Qf8+ {[%emt 0:05:25]} Kh5 {[%emt 0:00:06]} 47. Qxf6 {[%emt 0:00:41]} Ne3+ {[%emt 0:01:23]} 48. Kh2 {[%emt 0:00:12]} Nf1+ {[%emt 0:00:26]} 49. Kg1 {[%emt 0:01:48]} Ne3 {[%emt 0:02:15]} 50. Qe6 {[%emt 0:00:45]} Nc2 {[%emt 0:11:04]} 51. Nf5 {[%emt 0:00:28]} Qg6 {[%emt 0:00:37]} 52. Qe4 {[%emt 0:00:21]} Qb6 {[%emt 0:01:33]} 53. Qxc2 {[%emt 0:00:16]} 1-0

[Event "FIDE Womens Grand Swiss 2023"]
[Site "Douglas/Isle of Man"]
[Date "2023.10.25"]
[Round "1.18"]
[White "Vantika Agrawal"]
[Black "Kamalidenova, Meruert"]
[Result "0-1"]
[ECO "E73"]
[WhiteElo "2435"]
[BlackElo "2351"]
[Annotator "RC"]
[PlyCount "124"]
[EventDate "2023.10.04"]
[EventType "swiss"]
[EventCountry "GBR"]
[SourceTitle "playchess.com"]
[Source "ChessBase"]
[SourceQuality "1"]
[TimeControl "40/6000+30:20/3000+30:900+30"]

1. d4 {[%emt 0:10:24]} Nf6 {[%emt 0:10:08]} 2. c4 {[%emt 0:00:04]} g6 {[%emt 0:00:05]} 3. Nc3 {[%emt 0:00:11]} Bg7 {[%emt 0:00:07]} 4. e4 {[%emt 0:00:05]} d6 {[%emt 0:00:04]} 5. Be2 {[%emt 0:00:03]} O-O {[%emt 0:00:07]} 6. Be3 {[%emt 0:00:14]} c5 {[%emt 0:00:11]} 7. d5 {[%emt 0:00:33]} e6 {[%emt 0:00:13]} 8. Nf3 {[%emt 0:00:30]} exd5 {[%emt 0:00:07]} 9. cxd5 {[%emt 0:00:06]} b5 {[%emt 0:00:58]} 10. e5 {[%emt 0:00:45]} dxe5 {[%emt 0:00:06]} 11. Bxc5 {[%emt 0:00:26]} Re8 {[%emt 0:00:05]} 12. Bxb5 {[%emt 0:00:13]} Nbd7 {[%emt 0:00:06]} 13. Be3 {[%emt 0:01:47]} Ng4 {[%emt 0:00:34]} 14. O-O {[%emt 0:05:03]} Nxe3 {[%emt 0:01:04]} 15. fxe3 {[%emt 0:04:10]} Rb8 {[%emt 0:00:03]} 16. Qe2 {[%emt 0:01:46]} a6 {[%emt 0:00:49]} 17. Bc6 {[%emt 0:03:23]} e4 {[%emt 0:08:42]} 18. Nd4 {[%emt 0:02:17]} Rf8 {[%emt 0:03:55]} 19. Rad1 {[%emt 0:40:30]} Ne5 {[%emt 0:04:09]} 20. h3 {[%emt 0:01:33]} f5 {[%emt 0:03:05]} 21. d6 {[%emt 0:09:05]} Bd7 {[%emt 0:11:56]} 22. Nd5 {[%emt 0:13:57]} Kh8 {[%emt 0:05:25]} 23. Bxd7 {[%emt 0:05:08]} Qxd7 {[%emt 0:01:34]} 24. Qxa6 {[%emt 0:01:45]} Nd3 {[%emt 0:14:38]} 25. Qc6 {[%emt 0:02:44]} Rfd8 {[%emt 0:01:53]} 26. Qxd7 {[%emt 0:02:06]} Rxd7 {[%emt 0:00:50]} 27. Nb3 {[%emt 0:03:38]} Nxb2 {[%emt 0:01:40]} 28. Rc1 {[%emt 0:00:44]} Rxd6 {[%emt 0:01:25]} 29. Nf4 {[%emt 0:00:37]} Be5 {[%emt 0:02:18]} 30. Rc2 {[%emt 0:01:07]} Nd1 {[%emt 0:02:19]} 31. Re2 {[%emt 0:00:31]} Nc3 {[%emt 0:01:01]} 32. Rc2 {[%emt 0:00:30]} Nxa2 {[%emt 0:01:38]} 33. Na5 {[%emt 0:00:31]} Nb4 {[%emt 0:00:44]} 34. Re2 {[%emt 0:00:31]} Rc8 {[%emt 0:01:13]} 35. g4 {[%emt 0:00:31]} Nd3 {[%emt 0:03:19]} 36. gxf5 {[%emt 0:00:29]} Bxf4 {[%emt 0:00:41]} 37. exf4 {[%emt 0:00:17]} gxf5 {[%emt 0:00:04]} 38. Nb3 {[%emt 0:00:41]} Rc3 {[%emt 0:01:09]} 39. Nd2 {[%emt 0:00:29]} Nc5 {[%emt 0:01:13]} 40. Rb1 {[%emt 0:00:35]} Rxh3 {[%emt 0:02:45]} 41. Nc4 {[%emt 0:29:30]} Rg6+ {[%emt 0:22:07]} 42. Rg2 {[%emt 0:00:22]} Nd3 {[%emt 0:00:52]} 43. Nd6 {[%emt 0:06:16]} Rxg2+ {[%emt 0:04:54]} 44. Kxg2 {[%emt 0:00:05]} Nxf4+ {[%emt 0:00:07]} 45. Kg1 {[%emt 0:00:14]} Kg7 {[%emt 0:01:42]} 46. Nxf5+ {[%emt 0:00:57]} Kf6 {[%emt 0:00:11]} 47. Nd4 {[%emt 0:02:07]} Rd3 {[%emt 0:02:08]} 48. Nc2 {[%emt 0:02:34]} Kf5 {[%emt 0:01:13]} 49. Ne1 {[%emt 0:01:51]} Rd2 {[%emt 0:00:31]} 50. Rb7 {[%emt 0:02:10]} Nh3+ {[%emt 0:01:14]} 51. Kh1 {[%emt 0:00:04]} Ng5 {[%emt 0:03:24]} 52. Kg1 {[%emt 0:01:39]} Kf4 {[%emt 0:01:43]} 53. Rg7 {[%emt 0:00:49]} h6 {[%emt 0:01:02]} 54. Ng2+ {[%emt 0:01:35]} Kg3 {[%emt 0:01:36]} 55. Ne3 {[%emt 0:00:18]} Kf3 {[%emt 0:00:42]} 56. Nf5 {[%emt 0:01:14]} e3 {[%emt 0:01:18]} 57. Re7 {[%emt 0:01:33]} Rd1+ {[%emt 0:01:18]} 58. Kh2 {[%emt 0:00:05]} e2 {[%emt 0:00:57]} 59. Nh4+ {[%emt 0:03:14]} Kf2 {[%emt 0:00:12]} 60. Ng2 {[%emt 0:00:41]} h5 {[%emt 0:00:32]} 61. Ne1 {[%emt 0:18:12]} Kxe1 {[%emt 0:15:47]} 62. Kg2 {[%emt 0:00:27]} Kd2 {[%emt 0:00:05]} 0-1

[Event "FIDE Womens Grand Swiss 2023"]
[Site "Douglas/Isle of Man"]
[Date "2023.10.25"]
[Round "1.19"]
[White "Mkrtchyan, Mariam"]
[Black "Ushenina, Anna"]
[Result "1/2-1/2"]
[ECO "E05"]
[WhiteElo "2343"]
[BlackElo "2434"]
[Annotator "RC"]
[PlyCount "72"]
[EventDate "2023.10.04"]
[EventType "swiss"]
[EventCountry "GBR"]
[SourceTitle "playchess.com"]
[Source "ChessBase"]
[SourceQuality "1"]
[TimeControl "40/6000+30:20/3000+30:900+30"]

1. d4 {[%emt 0:10:03]} d5 {[%emt 0:10:17]} 2. c4 {[%emt 0:00:07]} e6 {[%emt 0:00:15]} 3. Nf3 {[%emt 0:00:07]} Nf6 {[%emt 0:00:51]} 4. g3 {[%emt 0:00:06]} Be7 {[%emt 0:00:43]} 5. Bg2 {[%emt 0:00:06]} O-O {[%emt 0:00:28]} 6. O-O {[%emt 0:00:03]} dxc4 {[%emt 0:00:12]} 7. Qc2 {[%emt 0:00:30]} b5 {[%emt 0:00:49]} 8. a4 {[%emt 0:00:07]} Bb7 {[%emt 0:00:16]} 9. axb5 {[%emt 0:00:22]} a6 {[%emt 0:00:37]} 10. bxa6 {[%emt 0:00:29]} Nxa6 {[%emt 0:00:25]} 11. Qxc4 {[%emt 0:01:28]} Bd5 {[%emt 0:02:05]} 12. Qc2 {[%emt 0:03:55]} Nb4 {[%emt 0:17:08]} 13. Rxa8 {[%emt 0:01:14]} Nxc2 {[%emt 0:00:08]} 14. Rxd8 {[%emt 0:00:36]} Rxd8 {[%emt 0:00:01]} 15. Bf4 {[%emt 0:05:08]} Rb8 {[%emt 0:12:14]} 16. Bxc7 {[%emt 0:27:39]} Rxb2 {[%emt 0:00:14]} 17. Nc3 {[%emt 0:04:03]} Bxf3 {[%emt 0:02:54]} 18. Bxf3 {[%emt 0:00:06]} Nxd4 {[%emt 0:00:20]} 19. Rb1 {[%emt 0:02:01]} Rxb1+ {[%emt 0:22:26]} 20. Nxb1 {[%emt 0:00:06]} Nxf3+ {[%emt 0:00:13]} 21. exf3 {[%emt 0:00:05]} Bb4 {[%emt 0:00:37]} 22. Bf4 {[%emt 0:03:12]} Nd5 {[%emt 0:01:56]} 23. Bd2 {[%emt 0:00:25]} Bc5 {[%emt 0:00:31]} 24. Nc3 {[%emt 0:01:30]} Nxc3 {[%emt 0:00:40]} 25. Bxc3 {[%emt 0:00:05]} g6 {[%emt 0:02:21]} 26. Kf1 {[%emt 0:12:09]} Kf8 {[%emt 0:01:38]} 27. f4 {[%emt 0:06:46]} Ke7 {[%emt 0:01:23]} 28. Be5 {[%emt 0:02:01]} Kd7 {[%emt 0:03:04]} 29. Ke2 {[%emt 0:00:06]} Kc6 {[%emt 0:01:11]} 30. Kf3 {[%emt 0:03:15]} Kd5 {[%emt 0:07:57]} 31. Bf6 {[%emt 0:01:05]} Bd4 {[%emt 0:01:53]} 32. Bd8 {[%emt 0:02:03]} f5 {[%emt 0:00:53]} 33. h3 {[%emt 0:01:12]} Kc4 {[%emt 0:01:21]} 34. Ke2 {[%emt 0:00:14]} Bc5 {[%emt 0:02:40]} 35. Bf6 {[%emt 0:00:11]} Kd5 {[%emt 0:00:33]} 36. Kf3 {[%emt 0:00:08]} Kc4 {[%emt 0:01:17]} 1/2-1/2

[Event "FIDE Womens Grand Swiss 2023"]
[Site "Douglas/Isle of Man"]
[Date "2023.10.25"]
[Round "1.20"]
[White "Injac, Teodora"]
[Black "Sandu, Mihaela"]
[Result "0-1"]
[ECO "A46"]
[WhiteElo "2426"]
[BlackElo "2298"]
[Annotator "RC"]
[PlyCount "128"]
[EventDate "2023.10.04"]
[EventType "swiss"]
[EventCountry "GBR"]
[SourceTitle "playchess.com"]
[Source "ChessBase"]
[SourceQuality "1"]
[TimeControl "40/6000+30:20/3000+30:900+30"]

1. d4 {[%emt 0:10:12]} Nf6 {[%emt 0:10:05]} 2. Bg5 {[%emt 0:00:15]} e6 {[%emt 0:00:18]} 3. Nf3 {[%emt 0:00:50]} h6 {[%emt 0:01:16]} 4. Bh4 {[%emt 0:00:37]} b6 {[%emt 0:04:45]} 5. e3 {[%emt 0:05:29]} Bb7 {[%emt 0:01:13]} 6. Nbd2 {[%emt 0:00:48]} c5 {[%emt 0:08:18]} 7. c3 {[%emt 0:00:49]} Be7 {[%emt 0:04:22]} 8. h3 {[%emt 0:30:22]} cxd4 {[%emt 0:04:09]} 9. exd4 {[%emt 0:00:15]} Nh5 {[%emt 0:08:53]} 10. Bxe7 {[%emt 0:04:36]} Qxe7 {[%emt 0:00:05]} 11. Qe2 {[%emt 0:05:30]} Nc6 {[%emt 0:05:05]} 12. g3 {[%emt 0:06:25]} Nf6 {[%emt 0:08:56]} 13. Bg2 {[%emt 0:00:20]} d6 {[%emt 0:00:12]} 14. O-O {[%emt 0:07:06]} O-O {[%emt 0:00:25]} 15. Rfe1 {[%emt 0:01:38]} Qd7 {[%emt 0:09:42]} 16. a4 {[%emt 0:03:48]} a5 {[%emt 0:01:35]} 17. Nh2 {[%emt 0:17:35]} Rfe8 {[%emt 0:05:22]} 18. Ng4 {[%emt 0:03:32]} Nxg4 {[%emt 0:01:52]} 19. Qxg4 {[%emt 0:00:06]} Ne7 {[%emt 0:11:22]} 20. Bxb7 {[%emt 0:02:57]} Qxb7 {[%emt 0:00:04]} 21. Ra3 {[%emt 0:03:00]} Nd5 {[%emt 0:05:38]} 22. Qe4 {[%emt 0:01:51]} Qd7 {[%emt 0:01:00]} 23. Kh2 {[%emt 0:01:02]} Rab8 {[%emt 0:00:18]} 24. Qd3 {[%emt 0:00:38]} Rec8 {[%emt 0:03:49]} 25. Rea1 {[%emt 0:01:35]} g6 {[%emt 0:02:36]} 26. Rb3 {[%emt 0:00:20]} Kg7 {[%emt 0:00:15]} 27. Nc4 {[%emt 0:00:43]} h5 {[%emt 0:02:48]} 28. h4 {[%emt 0:00:30]} Nf6 {[%emt 0:02:49]} 29. Ne3 {[%emt 0:00:53]} d5 {[%emt 0:00:37]} 30. Kg2 {[%emt 0:00:43]} Ne4 {[%emt 0:00:50]} 31. Qe2 {[%emt 0:00:30]} Qd6 {[%emt 0:00:49]} 32. Nf1 {[%emt 0:00:24]} Qd7 {[%emt 0:01:57]} 33. Nd2 {[%emt 0:01:03]} Nxd2 {[%emt 0:00:37]} 34. Qxd2 {[%emt 0:00:02]} Rc4 {[%emt 0:00:08]} 35. Rba3 {[%emt 0:00:48]} Re8 {[%emt 0:01:58]} 36. Qg5 {[%emt 0:00:35]} f6 {[%emt 0:01:34]} 37. Qe3 {[%emt 0:00:24]} e5 {[%emt 0:00:37]} 38. dxe5 {[%emt 0:00:03]} Rxe5 {[%emt 0:00:16]} 39. Qxb6 {[%emt 0:00:40]} Rxh4 {[%emt 0:00:18]} 40. gxh4 {[%emt 0:00:44]} Qg4+ {[%emt 0:00:05]} 41. Kf1 {[%emt 0:50:51]} Qh3+ {[%emt 0:51:08]} 42. Kg1 {[%emt 0:00:05]} Qg4+ {[%emt 0:00:04]} 43. Kf1 {[%emt 0:00:19]} Qxh4 {[%emt 0:00:00]} 44. Qc7+ {[%emt 0:00:00]} Kh6 {[%emt 0:00:00]} 45. Qxe5 {[%emt 0:00:00]} fxe5 {[%emt 0:00:00]} 46. Kg1 {[%emt 0:01:39]} Qg4+ {[%emt 0:00:00]} 47. Kh2 {[%emt 0:00:02]} Qe2 {[%emt 0:00:00]} 48. b4 {[%emt 0:00:15]} Qxf2+ {[%emt 0:00:00]} 49. Kh1 {[%emt 0:00:04]} g5 {[%emt 0:00:00]} 50. bxa5 {[%emt 0:00:32]} g4 {[%emt 0:00:00]} 51. R3a2 {[%emt 0:00:48]} Qf3+ {[%emt 0:00:00]} 52. Kg1 {[%emt 0:00:03]} h4 {[%emt 0:00:00]} 53. a6 {[%emt 0:00:01]} h3 {[%emt 0:01:14]} 54. a7 {[%emt 0:00:43]} Qe3+ {[%emt 0:00:05]} 55. Kh2 {[%emt 0:00:11]} Qxa7 {[%emt 0:00:04]} 56. a5 {[%emt 0:00:38]} Kg5 {[%emt 0:00:37]} 57. a6 {[%emt 0:00:29]} Kh4 {[%emt 0:00:25]} 58. Rg1 {[%emt 0:01:27]} e4 {[%emt 0:01:33]} 59. c4 {[%emt 0:01:18]} dxc4 {[%emt 0:00:18]} 60. Rg3 {[%emt 0:00:52]} e3 {[%emt 0:01:02]} 61. Re2 {[%emt 0:15:33]} Qxa6 {[%emt 0:15:33]} 62. Rgxe3 {[%emt 0:00:21]} c3 {[%emt 0:02:44]} 63. Re8 {[%emt 0:00:38]} Qd6+ {[%emt 0:02:03]} 64. Kg1 {[%emt 0:00:31]} c2 {[%emt 0:00:07]} 0-1